Cogmind - Beta 14 @@@ ROGUE MODE // 2025.01.07 @ 23:13:56 Player: Mathewnd Result: Destroyed by H-88 Terminator with KE Penetrator Performance ------------- Evolutions (8) 4000 Regions Visited (22) 4400 Robots Destroyed (195) 975 Value Destroyed (5828) 5828 Prototype IDs (26) 520 Alien Tech Used (0) 0 Bonus (5685) 5685 TOTAL SCORE: 21408 Bonus ------- High Alert Combat Kills 1000 Follower Combat Kills 1316 Met Data Miner 300 Built Enhanced Grunts 300 A7 Reached Mainframe 300 Met R17 at Cetus 500 Met R17 at Research 2000 Friendly Fire -31 Cogmind --------- Core Integrity 0/1450 Matter 93/300 Energy 170/170 System Corruption 2% Temperature Cool (0) Movement Walking (115) Location -2/Quarantine Parts ------- > --- POWER (2) -------- Light Antimatter Reactor > --- PROPULSION (6) --- Biometal Leg High-density Centrium Leg Cooled Antigrav System > --- UTILITY (13) ----- Medium Storage Unit Advanced Force Field > --- WEAPON (2) ------- Heavy Gauss Cannon > --- INVENTORY (10) --- Quantum Reactor Xenon Bombardment Thruster Xenon Bombardment Thruster Heavy Machine Gun Peak State ------------ > --- POWER ------------ Light Deuterium Engine Micro Fission Core > --- PROPULSION ------- Antigrav System Antigrav Array Field Propulsion Array Electron Diverter > --- UTILITY ---------- Triangulator Enhanced Optical Array Enhanced Optical Array Advanced Sensor Array Advanced Signal Interpreter Advanced Terrain Scanner ECM Suite Reaction Control System Hacking Suite Improved Hacking Suite Improved Hacking Suite > --- WEAPON ----------- Quantum Rifle > --- INVENTORY -------- Light Antimatter Reactor Light Particle Reactor Medium Storage Unit Advanced Force Field Heavy Gauss Cannon [Rating: 112] Favorites ----------- Power Micro Fission Core Engine Light Deuterium Engine Power Core Micro Fission Core Reactor Light Antimatter Reactor Propulsion Light Treads Treads Light Treads Leg Biometal Leg Wheel Wheel Hover Unit Antigrav Array Flight Unit Improved Flight Unit Utility Hacking Suite Device ECM Suite Storage Medium Storage Unit Processor Enhanced Optical Array Hackware Hacking Suite Protection Medium Armor Plating Weapon Ion Cannon Energy Gun Quantum Rifle Energy Cannon Ion Cannon Ballistic Gun Assault Rifle Ballistic Cannon Hypervelocity Gauss Cannon Launcher Grenade Launcher Slashing Weapon Phasing Sabre Piercing Weapon Spear Build | -11 -10 -9 -9 -8 -7 -7 -7 -7 -7 -7 -6 -6 -6 -6 -5 -4 -4 -4 -4 -3 -2 -2 ------- Run | Yrd Mat Mat Sto Mat Fac Was Fac Low Low Dat Pro Fac Was Fac Fac Fac Ext Cet Arc Res Res Qua Slots Evolved 16 | . . 2 . 2 2 . . . . . . 2 . . 2 2 . . . 2 2 . Power 1 | . . . . . . . . . . . . 1 . . . . . . . . . . Propulsion 4 | . . 1 . 1 1 . . . . . . . . . . . . . . 1 . . Utility 11 | . . 1 . 1 1 . . . . . . 1 . . 2 2 . . . 1 2 . Weapon . | . . . . . . . . . . . . . . . . . . . . . . . Parts Attached 230 | 7 8 32 18 33 13 . 2 . . . 10 4 . 16 22 3 20 2 1 16 11 12 Power 24 | 1 . 1 3 3 . . . . . . 1 . . 4 3 . 2 . . . 3 3 Engine 13 | 1 . . 3 2 . . . . . . . . . 4 2 . 1 . . . . . Core 5 | . . 1 . 1 . . . . . . 1 . . . 1 . 1 . . . . . Reactor 6 | . . . . . . . . . . . . . . . . . . . . . 3 3 Propulsion 69 | 2 . 10 7 10 5 . . . . . 2 1 . 4 4 . 7 . . 8 5 4 Treads 29 | 2 . 10 7 10 . . . . . . . . . . . . . . . . . . Leg 3 | . . . . . . . . . . . . . . . . . . . . . . 3 Wheel 1 | . . . . . . . . . . . . . . . 1 . . . . . . . Hover 6 | . . . . . . . . . . . . . . . . . . . . 3 2 1 Flight 30 | . . . . . 5 . . . . . 2 1 . 4 3 . 7 . . 5 3 . Utility 67 | 2 2 5 4 3 6 . 2 . . . 1 3 . 6 10 3 9 . . 7 1 3 Device 36 | 1 . 2 2 2 2 . 2 . . . 1 . . 2 10 2 2 . . 5 1 2 Storage 8 | 1 . 1 1 . 1 . . . . . . 1 . 1 . . . . . 1 . 1 Processor 7 | . 1 . . . 1 . . . . . . 2 . . . . 2 . . 1 . . Hackware 10 | . . . . . 2 . . . . . . . . 3 . 1 4 . . . . . Protection 6 | . 1 2 1 1 . . . . . . . . . . . . 1 . . . . . Artifact . | . . . . . . . . . . . . . . . . . . . . . . . Weapon 70 | 2 6 16 4 17 2 . . . . . 6 . . 2 5 . 2 2 1 1 2 2 Energy Gun 1 | . . . . . . . . . . . . . . . . . . . . 1 . . Energy Cannon 20 | . . 9 2 7 . . . . . . . . . . . . . . . . 1 1 Ballistic Gun 11 | 2 4 2 . 3 . . . . . . . . . . . . . . . . . . Ballistic Cannon 6 | . . . . . . . . . . . . . . . . . 2 2 . . 1 1 Launcher 20 | . 2 5 2 6 . . . . . . 3 . . . 2 . . . . . . . Special Weapon . | . . . . . . . . . . . . . . . . . . . . . . . Impact Weapon . | . . . . . . . . . . . . . . . . . . . . . . . Slashing Weapon 4 | . . . . . . . . . . . . . . 1 2 . . . 1 . . . Piercing Weapon 8 | . . . . 1 2 . . . . . 3 . . 1 1 . . . . . . . Special Melee Weapon . | . . . . . . . . . . . . . . . . . . . . . . . Unidentified Prototypes 8 | . . 1 . 1 . . . . . . . . . 1 1 . . . . 3 . 1 Parts Lost 84 | . 1 6 5 13 . . . . . . 5 1 . 9 10 . 5 3 4 . 20 2 Power 14 | . . 1 2 1 . . . . . . 1 . . 2 2 . 1 . . . 4 . Propulsion 35 | . . 3 . 5 . . . . . . 2 1 . 5 4 . 1 2 3 . 9 . Utility 24 | . 1 1 3 2 . . . . . . 2 . . 2 2 . 2 1 . . 7 1 Weapon 11 | . . 1 . 5 . . . . . . . . . . 2 . 1 . 1 . . 1 Highest Loss Streak 16 | . 1 5 2 6 . . . . . . 2 1 . 5 8 . 4 3 4 . 16 1 To Critical Strikes 1 | . . . . 1 . . . . . . . . . . . . . . . . . . Average Slot Usage (%) 83 | . 95 97 97 90 90 100 100 100 100 100 97 89 93 72 49 36 70 86 56 72 72 19 Engine 4 | . 14 1 6 6 . . . . . . . . . 4 3 . 3 5 5 4 2 . Core 4 | . . 9 4 2 7 7 7 7 7 7 7 6 6 . . 5 4 5 5 4 2 . Treads 15 | . 28 31 33 35 . . . . . . . . . . . . . . . . . . Flight 10 | . . . . . 37 38 38 38 38 38 37 33 33 23 11 5 20 22 10 7 18 . Device 12 | . 2 9 10 16 7 7 7 7 7 7 14 13 13 8 8 15 19 19 5 18 15 4 Storage 6 | . 14 11 11 9 7 7 7 7 7 7 7 6 6 6 3 . . . . 1 3 2 Processor 4 | . 1 . . . 6 7 7 7 7 7 5 9 13 13 8 . 7 10 10 12 11 . Hackware 4 | . . . . . 14 15 15 15 15 15 7 6 6 7 8 5 7 15 15 14 12 . Protection 4 | . 5 11 9 3 . . . . . . . . . . . . 3 3 . . . . Energy Cannon 6 | . . 14 21 7 . . . . . . . . . . . . . . . . . . Ballistic Gun 3 | . 27 5 . 9 . . . . . . . . . . . . . . . . . . Piercing Weapon 2 | . . . . . 7 15 15 15 15 15 14 13 13 6 . 5 1 . . . . . Peak Build Rating 112 | 9 9 22 22 35 40 41 42 42 42 42 42 46 46 54 49 41 71 73 58 112 106 57 Average Rating 37 | 5 7 16 19 27 36 40 41 41 42 42 38 43 46 43 35 39 53 67 47 87 91 35 On Entrance 36 | . 9 7 22 18 24 40 41 41 42 42 42 37 46 46 43 30 41 68 53 38 103 2 Naked Turns 54 | . . . . . . . . . . . . . . . 21 . . . . . 18 15 Heaviest Build 106 | 12 14 65 103 106 90 22 22 22 22 22 24 22 22 27 25 12 22 32 15 31 41 51 Greatest Support 112 | 40 40 60 60 112 25 25 25 25 25 25 28 28 26 27 21 13 23 23 15 41 41 60 Greatest Overweight (x) 8 | . . 1 1 1 3 . . . . . . . . 1 8 . 3 1 3 3 4 1 Average Overweight (x) . | . . . . . 1 . . . . . . . . . . . . . . . . . Largest Inventory Capacity 25 | 8 8 20 25 25 25 10 10 10 10 10 10 10 10 10 10 5 5 5 5 10 10 10 Average Capacity 13 | 7 8 12 20 25 24 10 10 10 10 10 10 10 10 10 8 5 5 5 5 6 9 7 Most Carried 25 | 8 8 20 24 25 24 8 9 10 10 10 10 9 10 10 10 5 5 5 5 10 10 6 Average Carried 11 | 5 7 10 19 24 9 7 8 9 10 10 6 7 9 9 7 4 3 4 4 5 7 4 Final Capacity 25 | 8 8 20 25 25 10 10 10 10 10 10 10 10 10 10 5 5 5 5 5 10 5 10 Final Carried 24 | 7 8 20 24 24 7 8 9 10 10 10 6 9 10 10 5 5 5 5 5 10 3 4 Class Distribution -------------------- 28% | Scavenger-Mutant 26% | Mutant 9% | Hacker-Sprinter 7% | Sprinter 6% | Hacker-Mutant 5% | Infiltrator-Mutant 5% | Scavenger-Sprinter 4% | Scavenger-Scout Dominant Class ---------------- Mutant | -10/Materials Scavenger-Mutant | -9/Materials Mutant | -9/Storage Scavenger-Mutant | -8/Materials Hacker-Mutant | -7/Factory Hacker-Sprinter | -7/Waste Hacker-Sprinter | -7/Factory Hacker-Sprinter | -7/Lower Caves Hacker-Sprinter | -7/Lower Caves Hacker-Sprinter | -7/Data Miner Sprinter | -6/Proximity Caves Sprinter | -6/Factory Sprinter | -6/Waste Sprinter | -6/Factory Hacker-Sprinter | -5/Factory Infiltrator-Mutant | -4/Factory Scavenger-Sprinter | -4/Extension Scavenger-Mutant | -4/Cetus Hacker-Mutant | -4/Archives Hacker-Mutant | -3/Research Scavenger-Scout | -2/Research Mutant | -2/Quarantine Resources | -11 -10 -9 -9 -8 -7 -7 -7 -7 -7 -7 -6 -6 -6 -6 -5 -4 -4 -4 -4 -3 -2 -2 ----------- Run | Yrd Mat Mat Sto Mat Fac Was Fac Low Low Dat Pro Fac Was Fac Fac Fac Ext Cet Arc Res Res Qua Matter Collected 3622 | 156 399 716 264 495 49 . . 285 . . 104 . . 183 71 138 283 239 10 160 . 70 Remotely . | . . . . . . . . . . . . . . . . . . . . . . . Salvage Created 6711 | 16 359 1706 1538 1528 49 . . 271 . . 74 18 . 125 67 138 329 308 . 45 40 100 Parts 399 | 4 19 100 104 99 . . . 1 . . 12 1 . 12 3 5 14 12 . 2 2 9 Haulers Intercepted 13 | . 2 5 4 2 . . . . . . . . . . . . . . . . . . Recyclers Shooed 8 | 1 . 3 1 1 . . . . . . . . . . 1 1 . . . . . . Parts Field Recycled . | . . . . . . . . . . . . . . . . . . . . . . . Retrieved Matter . | . . . . . . . . . . . . . . . . . . . . . . . Parts Self-Destructed 15 | . . . . . . . . . 4 . 11 . . . . . . . . . . . Prevented 1 | . . . . . . . . 1 . . . . . . . . . . . . . . Kills | -11 -10 -9 -9 -8 -7 -7 -7 -7 -7 -7 -6 -6 -6 -6 -5 -4 -4 -4 -4 -3 -2 -2 ------- Run | Yrd Mat Mat Sto Mat Fac Was Fac Low Low Dat Pro Fac Was Fac Fac Fac Ext Cet Arc Res Res Qua Combat Hostiles Destroyed 133 | . 6 35 30 34 1 . . . . . 9 . . . 2 . 6 4 . . 1 5 Melee 9 | . . . . 2 1 . . . . . . . . . . . 6 . . . . . Guns 18 | . 3 9 . 6 . . . . . . . . . . . . . . . . . . Cannons 59 | . . 15 27 11 . . . . . . . . . . . . . 4 . . 1 1 AOE 47 | . 3 11 3 15 . . . . . . 9 . . . 2 . . . . . . 4 Classes Destroyed 14 | 1 6 4 1 1 . . . . . . 1 . . . . . . . . . . . Worker 11 | . 3 1 . 3 . . . . . . . . . 4 . . . . . . . . Builder 8 | . . 1 4 1 . . . . . . . . . . 1 . . . . . . 1 Tunneler 3 | 1 . . . 1 . . . . . . . . . 1 . . . . . . . . Hauler 13 | . 2 5 4 2 . . . . . . . . . . . . . . . . . . Recycler 4 | . . 1 1 1 . . . . . . . . . . . 1 . . . . . . Mechanic 5 | . . 1 1 3 . . . . . . . . . . . . . . . . . . Operator 6 | . 1 1 . . . . . . . . . 1 . 1 . . 2 . . . . . Drone 1 | . . . . . . . . . . . 1 . . . . . . . . . . . Watcher 12 | . 2 3 2 1 . . . . . . . . . . . . 1 2 . 1 . . Swarmer 40 | . 3 6 6 7 . . . . . . 8 . . . . . 4 . . . 1 5 Grunt 54 | . 3 21 12 16 . . . . . . . . . . 2 . . . . . . . Brawler 3 | . . . 1 2 . . . . . . . . . . . . . . . . . . Sentry 29 | . . 8 11 8 . . . . . . . . . . . . 2 . . . . . Hunter 2 | . . . . 1 1 . . . . . . . . . . . . . . . . . Cetus Guard 4 | . . . . . . . . . . . . . . . . . . 4 . . . . Best Kill Streak 13 | 1 5 6 7 13 1 . . . . . 4 1 . 3 3 1 5 2 . 1 1 6 Combat Bots Only 8 | . 3 5 5 8 1 . . . . . 4 . . . 2 . 5 2 . . 1 5 Max Kills in Single Turn 6 | 1 4 4 2 6 1 . . . . . 3 1 . 1 2 1 1 1 . 1 1 5 Gunslinging . | . . . . . . . . . . . . . . . . . . . . . . . Exploded 4 | . 2 3 2 4 . . . . . . 3 . . . 1 . . . . . . 4 Melee 1 | . . . . 1 1 . . . . . . . . . . . 1 . . . . . Uniques/NPCs Destroyed . | . . . . . . . . . . . . . . . . . . . . . . . Combat | -11 -10 -9 -9 -8 -7 -7 -7 -7 -7 -7 -6 -6 -6 -6 -5 -4 -4 -4 -4 -3 -2 -2 -------- Run | Yrd Mat Mat Sto Mat Fac Was Fac Low Low Dat Pro Fac Was Fac Fac Fac Ext Cet Arc Res Res Qua Hostile Shots Fired 1037 | . 47 158 111 196 10 . . . . . 23 13 . 59 114 6 42 8 10 4 190 46 Missed 336 | . 6 47 32 52 2 . . . . . 9 8 . 19 46 5 14 2 3 3 72 16 Damage Taken 12469 | . 571 1354 1115 2285 112 . 63 . . . 299 60 . 723 1275 26 610 157 213 123 2784 699 Core 3508 | . 98 119 181 356 31 . 21 . . . 41 11 . 298 575 . 242 . 53 19 1391 72 Absorbed by Shields 180 | . . . . . . . . . . . . . . 31 . . . 52 . . . 97 Redirected to Shielding 25 | . . 25 . . . . . . . . . . . . . . . . . . . . Regen/Repaired (Parts) 48 | . . . . . . . . . . . . . . . . . 48 . . . . . Core Remaining (%) 64 | 100 60 . 25 35 . . . . . . 86 . . 63 42 . . . 74 98 . . Volleys Fired 418 | 3 48 118 72 102 . . . . . . 8 . . . 3 . 4 28 . 8 3 21 Largest 2 | 2 2 2 2 2 . . . . . . 1 . . . 2 . 1 1 . 1 1 1 Hottest 136 | 40 50 136 120 120 . . . . . . 33 . . . 66 . 61 61 . 94 94 88 Shots Fired 755 | 6 94 234 144 201 . . . . . . 8 . . . 4 . 4 28 . 8 3 21 Gun 255 | 6 91 78 . 71 . . . . . . . . . . . . . . . 8 1 . Cannon 441 | . . 142 136 108 . . . . . . . . . . . . 4 28 . . 2 21 Launcher 59 | . 3 14 8 22 . . . . . . 8 . . . 4 . . . . . . . Special . | . . . . . . . . . . . . . . . . . . . . . . . Kinetic 298 | 6 91 78 . 71 . . . . . . . . . . . . 4 28 . . . 20 Thermal 395 | . . 142 136 108 . . . . . . . . . . . . . . . 8 1 . Explosive 59 | . 3 14 8 22 . . . . . . 8 . . . 4 . . . . . . . Electromagnetic 3 | . . . . . . . . . . . . . . . . . . . . . 2 1 Robot Hit Streak 14 | 3 9 14 8 12 . . . . . . . . . . 2 . 3 6 . 3 6 4 Robot Miss Streak 9 | 2 3 4 5 9 . . . . . . 2 . . . 3 . 1 4 . 1 . 9 Penetration Max 1 | . . . . . . . . . . . . . . . . . . . . . . 1 Secondary Targets . | . . . . . . . . . . . . . . . . . . . . . . . Shots Hit Robots 472 | 3 61 134 75 120 4 . . 8 . . . 2 . 6 3 2 21 17 1 6 3 6 Core Hits 298 | 1 23 67 46 87 1 . . 4 . . 13 . . 4 16 1 12 11 . 2 2 8 Critical Kills 8 | . . . 1 1 . . . . . . . . . . . . 1 5 . . . . Critical Parts Destroyed 6 | . . 1 . . . . . . . . . . . . . . 1 4 . . . . Critical Strikes 22 | . . 1 1 1 . . . 2 . . . 1 . 1 . . 3 12 . . . . Meltdown 1 | . . . 1 . . . . . . . . . . . . . . . . . . . Destroy 16 | . . 1 . 1 . . . . . . . . . . . . 2 12 . . . . Impale 5 | . . . . . . . . 2 . . . 1 . 1 . . 1 . . . . . Melee Attacks 71 | . . . . 5 5 . . 13 . . 3 5 . 11 1 8 19 . 1 . . . Impact . | . . . . . . . . . . . . . . . . . . . . . . . Slashing 3 | . . . . . . . . . . . . . . 1 1 . . . 1 . . . Piercing 68 | . . . . 5 5 . . 13 . . 3 5 . 10 . 8 19 . . . . . Sneak Attacks 9 | . . . . . 1 . . . . . . . . 6 . 1 . . 1 . . . Combat Hostiles . | . . . . . . . . . . . . . . . . . . . . . . . Follow-up Attacks 2 | . . . . . . . . . . . 1 1 . . . . . . . . . . Damage Inflicted 14960 | 32 820 3138 2249 4064 135 . . 474 . . 623 77 . 410 586 103 634 338 98 170 130 879 Guns 2371 | 32 707 768 . 664 . . . . . . . . . . . . . . . 170 30 . Cannons 5311 | . . 1584 1749 1264 . . . . . . . . . . . . 44 338 . . 67 265 Explosions 5113 | . 112 786 492 1963 . . . . . . 623 . . . 523 . . . . . . 614 Melee 2047 | . . . . 112 135 . . 474 . . . 77 . 410 48 103 590 . 98 . . . Ramming 118 | . 1 . 8 61 . . . . . . . . . . 15 . . . . . 33 . Kinetic 2818 | 32 707 768 . 664 . . . . . . . . . . . . 44 338 . . . 265 Thermal 4797 | . . 1584 1749 1264 . . . . . . . . . . . . . . . 170 30 . Explosive 5113 | . 112 786 492 1963 . . . . . . 623 . . . 523 . . . . . . 614 Electromagnetic 67 | . . . . . . . . . . . . . . . . . . . . . 67 . Impact . | . . . . . . . . . . . . . . . . . . . . . . . Slashing 231 | . . . . . . . . . . . . . . 85 48 . . . 98 . . . Piercing 1816 | . . . . 112 135 . . 474 . . . 77 . 325 . 103 590 . . . . . Highest Corruption 6 | . . . . . . 5 5 . . . . . . . . . . . . . 6 6 Average Corruption 4 | . . . . . . 5 2 . . . . . . . . . . . . . 5 5 Corruption Purged 9 | . . . . . . . 5 . . . . . . . . . . . . . . 4 Corruption Blocked . | . . . . . . . . . . . . . . . . . . . . . . . Effects 16 | . . . . . . 1 1 . . . . . . . . . . . . . 1 13 Message Errors 2 | . . . . . . . . . . . . . . . . . . . . . . 2 Matter Fused 4 | . . . . . . . . . . . . . . . . . . . . . . 4 Heat Flow Errors 1 | . . . . . . . . . . . . . . . . . . . . . 1 . Parts Rejected 1 | . . . . . . . . . . . . . . . . . . . . . . 1 Data Loss (minor) 4 | . . . . . . . 1 . . . . . . . . . . . . . . 3 Data Loss (major) 2 | . . . . . . 1 . . . . . . . . . . . . . . . 1 Misfires 1 | . . . . . . . . . . . . . . . . . . . . . . 1 Weapon Failures 1 | . . . . . . . . . . . . . . . . . . . . . . 1 Overload Shots . | . . . . . . . . . . . . . . . . . . . . . . . Overflow Damage 626 | . . 22 48 32 12 . . 174 . . 15 40 . 85 30 . 55 . 68 . . 45 Projectiles 16 | . . 2 11 3 . . . . . . . . . . . . . . . . . . Explosions 163 | . . 20 37 29 . . . . . . 15 . . . 17 . . . . . . 45 Melee 447 | . . . . . 12 . . 174 . . . 40 . 85 13 . 55 . 68 . . . Knockbacks 4 | . . . . 1 . . . . . . . . . . . . . . . . 1 2 Impact 2 | . . . . 1 . . . . . . . . . . . . . . . . 1 . Kinetic 2 | . . . . . . . . . . . . . . . . . . . . . . 2 Secondary . | . . . . . . . . . . . . . . . . . . . . . . . Self-Inflicted Damage 367 | . . 28 87 87 . . . . . . 52 . . . 7 . . . . . 16 90 Shots 14 | . . 2 6 3 . . . . . . 2 . . . . . . . . . . 1 Rammed 17 | . 1 . 1 5 . . . . . . . . . . 1 . . . . . 9 . Targets Rammed 20 | . 1 . 2 7 . . . . . . . . . . 1 . . . . . 9 . Kicked . | . . . . . . . . . . . . . . . . . . . . . . . Crushed 3 | . . . 1 2 . . . . . . . . . . . . . . . . . . Highest Temperature 388 | . 27 270 340 388 . . 3 . . . 11 5 . 29 4 . 54 205 . 297 174 . Average Temperature 73 | . 11 67 81 104 . . 3 . . . 8 3 . 9 3 . 18 79 . 82 29 . Received Heat Transfer 3318 | . 330 723 333 891 . . . . . . 12 15 . 363 306 . 129 . 27 . 189 . Effects 3 | . . 1 1 1 . . . . . . . . . . . . . . . . . . Energy Bleed 3 | . . 1 1 1 . . . . . . . . . . . . . . . . . . Siege Activations . | . . . . . . . . . . . . . . . . . . . . . . . Robots Corrupted . | . . . . . . . . . . . . . . . . . . . . . . . Combat Hostiles . | . . . . . . . . . . . . . . . . . . . . . . . Parts Fried 1 | . . . . . . . . . . . . . . . . . . 1 . . . . Impact Corruptions . | . . . . . . . . . . . . . . . . . . . . . . . Robots Melted 1 | . . . 1 . . . . . . . . . . . . . . . . . . . Combat Hostiles . | . . . . . . . . . . . . . . . . . . . . . . . Parts Melted 14 | . . 6 6 2 . . . . . . . . . . . . . . . . . . Heat Transferred 7844 | . . 2738 2812 2035 . . . . . . . . . . . . . . . 222 37 . Parts Sabotaged . | . . . . . . . . . . . . . . . . . . . . . . . Parts Stolen . | . . . . . . . . . . . . . . . . . . . . . . . Parts Stripped . | . . . . . . . . . . . . . . . . . . . . . . . Power Chain Reactions . | . . . . . . . . . . . . . . . . . . . . . . . Alert | -11 -10 -9 -9 -8 -7 -7 -7 -7 -7 -7 -6 -6 -6 -6 -5 -4 -4 -4 -4 -3 -2 -2 ------- Run | Yrd Mat Mat Sto Mat Fac Was Fac Low Low Dat Pro Fac Was Fac Fac Fac Ext Cet Arc Res Res Qua Peak Influence 1050 | 5 238 829 867 1050 428 109 76 . . . . 671 234 410 231 87 518 436 191 88 175 280 Initial 541 | . 3 32 349 365 383 79 76 . . . . 541 234 149 4 29 42 242 174 43 . 8 Average 379 | 1 100 390 630 777 373 89 76 . . . . 587 219 287 87 55 258 388 169 36 75 138 Maximum Alert Level 3 | . 1 3 3 3 2 . . . . . . 2 1 2 1 . 2 2 . . . 1 Low Security (%) 38 | 100 86 42 . . . 100 100 . . . . . . 17 88 100 49 . 100 100 100 42 Level 1 19 | . 13 7 3 8 99 . . . . . . . 100 63 11 . 27 74 . . . 57 Level 2 22 | . . 34 54 17 . . . . . . . 100 . 19 . . 22 25 . . . . Level 3 20 | . . 16 41 74 . . . . . . . . . . . . . . . . . . Level 4 . | . . . . . . . . . . . . . . . . . . . . . . . Level 5 . | . . . . . . . . . . . . . . . . . . . . . . . High Security . | . . . . . . . . . . . . . . . . . . . . . . . Max Security . | . . . . . . . . . . . . . . . . . . . . . . . Squads Dispatched 40 | . 1 3 4 3 2 . . . . . . . . 5 3 1 4 . . 7 7 . Investigation 13 | . . . 1 . 1 . . . . . . . . 4 1 . 1 . . 3 2 . Extermination 2 | . . . . . . . . . . . . . . . . 1 . . . . 1 . Reinforcement 19 | . 1 1 2 1 1 . . . . . . . . 1 2 . 3 . . 4 3 . Assault 6 | . . 2 1 2 . . . . . . . . . . . . . . . . 1 . Garrison . | . . . . . . . . . . . . . . . . . . . . . . . Intercept . | . . . . . . . . . . . . . . . . . . . . . . . Searches Triggered 1 | . . . . . . . . . . . . . . 1 . . . . . . . . Data Miner Redirects 3 | . . . . . . . . . . . . . . 2 1 . . . . . . . Construction Impeded 6 | . . . 1 1 1 . . . . . . . . . 1 . 1 . . . 1 . Haulers Reinforced 1 | . . . . . . . . . . . . . . . . . . . . 1 . . Active Scanning Responses . | . . . . . . . . . . . . . . . . . . . . . . . Cargo Convoy Interrupts . | . . . . . . . . . . . . . . . . . . . . . . . Stealth | -11 -10 -9 -9 -8 -7 -7 -7 -7 -7 -7 -6 -6 -6 -6 -5 -4 -4 -4 -4 -3 -2 -2 --------- Run | Yrd Mat Mat Sto Mat Fac Was Fac Low Low Dat Pro Fac Was Fac Fac Fac Ext Cet Arc Res Res Qua Distress Signals 25 | . . 2 1 3 . . . . . . . 4 . 3 1 . 3 2 . 2 4 . Communications Jammed . | . . . . . . . . . . . . . . . . . . . . . . . Distress Signals . | . . . . . . . . . . . . . . . . . . . . . . . Times Spotted 385 | . 14 56 36 53 1 2 . . . . 12 8 6 47 30 2 28 9 5 11 58 7 Peak Tracking Total 29 | . 4 5 5 7 1 2 . . . . 4 4 6 14 8 2 4 4 3 5 29 5 Tactical Retreats 45 | . . 4 2 . . . . . . . . 3 . 11 8 2 5 . . 3 7 . Traps | -11 -10 -9 -9 -8 -7 -7 -7 -7 -7 -7 -6 -6 -6 -6 -5 -4 -4 -4 -4 -3 -2 -2 ------- Run | Yrd Mat Mat Sto Mat Fac Was Fac Low Low Dat Pro Fac Was Fac Fac Fac Ext Cet Arc Res Res Qua Traps Triggered 16 | . . . . . 1 . 1 . . . . 1 . 3 1 . 1 . . 1 6 1 Indirectly . | . . . . . . . . . . . . . . . . . . . . . . . Trap Hack Attempts . | . . . . . . . . . . . . . . . . . . . . . . . Triggered . | . . . . . . . . . . . . . . . . . . . . . . . Disarmed . | . . . . . . . . . . . . . . . . . . . . . . . Reprogrammed 4 | . . . . . . . . . . . . . . . . . 4 . . . . . Reused . | . . . . . . . . . . . . . . . . . . . . . . . Traps Extracted . | . . . . . . . . . . . . . . . . . . . . . . . Installed . | . . . . . . . . . . . . . . . . . . . . . . . Triggered 2 | . . . . . . . . 2 . . . . . . . . . . . . . . Machines | -11 -10 -9 -9 -8 -7 -7 -7 -7 -7 -7 -6 -6 -6 -6 -5 -4 -4 -4 -4 -3 -2 -2 ---------- Run | Yrd Mat Mat Sto Mat Fac Was Fac Low Low Dat Pro Fac Was Fac Fac Fac Ext Cet Arc Res Res Qua Machines Disabled 15 | . 1 4 2 4 . . . . . . . 2 . . . . . . 1 . . 1 Max in Single Turn 2 | . 1 1 1 2 . . . . . . . . . . . . . . . . . 1 Garrison Access 4 | . . . . 1 . . . . . . . 1 . . . . . . . 1 1 . Machines Repaired . | . . . . . . . . . . . . . . . . . . . . . . . Machines Dismantled . | . . . . . . . . . . . . . . . . . . . . . . . Machines Sabotaged . | . . . . . . . . . . . . . . . . . . . . . . . Overloaded Fab Kills . | . . . . . . . . . . . . . . . . . . . . . . . Hacking | -11 -10 -9 -9 -8 -7 -7 -7 -7 -7 -7 -6 -6 -6 -6 -5 -4 -4 -4 -4 -3 -2 -2 --------- Run | Yrd Mat Mat Sto Mat Fac Was Fac Low Low Dat Pro Fac Was Fac Fac Fac Ext Cet Arc Res Res Qua Machines Accessed 63 | . 2 8 9 5 1 . 2 . . 4 . 1 . 8 7 1 9 1 . 2 1 2 Terminals 43 | . 1 8 8 4 . . . . . . . . . 4 5 1 8 1 . 1 1 1 Fabricators 4 | . . . . . 1 . 1 . . . . . . 2 . . . . . . . . Repair Stations 1 | . . . . . . . . . . . . . . . . . 1 . . . . . Recycling Units 4 | . 1 . 1 . . . 1 . . . . . . 1 . . . . . . . . Scanalyzers 1 | . . . . . . . . . . . . . . . 1 . . . . . . . Garrison Access 6 | . . . . 1 . . . . . . . 1 . 1 1 . . . . 1 . 1 Total Hacks 166 | . 4 23 18 11 3 . 3 . . 27 . 2 . 18 18 1 26 1 . 4 3 4 Successful 92 | . 3 10 5 5 1 . 3 . . 27 . 1 . 11 5 . 15 1 . 2 1 2 Failed 74 | . 1 13 13 6 2 . . . . . . 1 . 7 13 1 11 . . 2 2 2 Catastrophic 15 | . . 2 4 4 . . . . . . . . . 2 1 1 1 . . . . . Database Lockouts . | . . . . . . . . . . . . . . . . . . . . . . . Manual 46 | . . 3 12 6 1 . 1 . . . . . . 6 5 1 6 1 . 3 . 1 Terminals 108 | . 3 23 17 10 . . . . . . . . . 8 14 1 22 1 . 3 3 3 Fabricators 9 | . . . . . 3 . 2 . . . . . . 4 . . . . . . . . Repair Stations 4 | . . . . . . . . . . . . . . . . . 4 . . . . . Recycling Units 6 | . 1 . 1 . . . 1 . . . . . . 3 . . . . . . . . Scanalyzers 1 | . . . . . . . . . . . . . . . 1 . . . . . . . Garrison Access 11 | . . . . 1 . . . . . . . 2 . 3 3 . . . . 1 . 1 Terminal Hacks 68 | . 2 10 4 4 . . . . . 27 . . . 4 3 . 9 1 . 1 1 2 Record 11 | . . . . . . . . . . 11 . . . . . . . . . . . . Part Schematic 9 | . . . . . . . . . . 9 . . . . . . . . . . . . Robot Schematic 4 | . . . . . . . . . . 4 . . . . . . . . . . . . Prototype ID Bank 6 | . 1 . 1 . . . . . . 3 . . . 1 . . . . . . . . Open Door 4 | . . . 3 . . . . . . . . . . . . . . 1 . . . . Level Access Points 2 | . . . . . . . . . . . . . . 1 . . . . . 1 . . Branch Access Points 1 | . . . . . . . . . . . . . . . . . . . . . 1 . Alert Level 5 | . . 1 . 1 . . . . . . . . . 1 1 . . . . . . 1 Unreport Threat 2 | . . . . 1 . . . . . . . . . 1 . . . . . . . . Locate Traps 5 | . . 1 . . . . . . . . . . . . 1 . 3 . . . . . Reprogram Traps 1 | . . . . . . . . . . . . . . . . . 1 . . . . . Dispatch Records 2 | . . 1 . . . . . . . . . . . . . . 1 . . . . . Transport Status 1 | . . 1 . . . . . . . . . . . . . . . . . . . . Recall Reinforcements 1 | . . . . . . . . . . . . . . . . . 1 . . . . . Hauler Manifests 1 | . . 1 . . . . . . . . . . . . . . . . . . . . Registered Components 2 | . . 1 . 1 . . . . . . . . . . . . . . . . . . Registered Prototypes 1 | . . . . . . . . . . . . . . . 1 . . . . . . . Zone Layout 10 | . 1 4 . 1 . . . . . . . . . . . . 3 . . . . 1 Fabricator Hacks 5 | . . . . . . . 1 . . . . . . 4 . . . . . . . . Network Status 1 | . . . . . . . 1 . . . . . . . . . . . . . . . Load Schematic 2 | . . . . . . . . . . . . . . 2 . . . . . . . . Build 2 | . . . . . . . . . . . . . . 2 . . . . . . . . Repair Station Hacks 4 | . . . . . . . . . . . . . . . . . 4 . . . . . Scan Component 2 | . . . . . . . . . . . . . . . . . 2 . . . . . Repair 2 | . . . . . . . . . . . . . . . . . 2 . . . . . Recycling Unit Hacks 4 | . 1 . 1 . . . 1 . . . . . . 1 . . . . . . . . Report Inventory 4 | . 1 . 1 . . . 1 . . . . . . 1 . . . . . . . . Scanalyzer . | . . . . . . . . . . . . . . . . . . . . . . . Garrison Access Hacks 3 | . . . . 1 . . . . . . . 1 . . . . . . . 1 . . Seal Access 3 | . . . . 1 . . . . . . . 1 . . . . . . . 1 . . Unauthorized Hacks 8 | . . . . . 1 . 1 . . . . . . 2 2 . 2 . . . . . Terminals 4 | . . . . . . . . . . . . . . 1 1 . 2 . . . . . Botnet 4 | . . . . . . . . . . . . . . 1 1 . 2 . . . . . Fabricators 2 | . . . . . 1 . 1 . . . . . . . . . . . . . . . Fabnet 1 | . . . . . . . 1 . . . . . . . . . . . . . . . Recompile 1 | . . . . . 1 . . . . . . . . . . . . . . . . . Repair Stations . | . . . . . . . . . . . . . . . . . . . . . . . Recycling Units 1 | . . . . . . . . . . . . . . 1 . . . . . . . . Tunnel 1 | . . . . . . . . . . . . . . 1 . . . . . . . . Scanalyzers 1 | . . . . . . . . . . . . . . . 1 . . . . . . . Researchers 1 | . . . . . . . . . . . . . . . 1 . . . . . . . Garrison Access . | . . . . . . . . . . . . . . . . . . . . . . . Data Cores Recovered . | . . . . . . . . . . . . . . . . . . . . . . . Used . | . . . . . . . . . . . . . . . . . . . . . . . Hacking Detections 49 | . 1 8 8 4 1 . 1 . . . . 1 . 5 6 1 9 . . 1 1 2 Full Trace Events 6 | . . . 1 . . . . . . . . . . 2 1 . 1 . . . 1 . Feedback Events . | . . . . . . . . . . . . . . . . . . . . . . . Feedback Blocked . | . . . . . . . . . . . . . . . . . . . . . . . Robot Schematics Acquired 4 | . . . . . . . . . . 4 . . . . . . . . . . . . Robots Built . | . . . . . . . . . . . . . . . . . . . . . . . Authchips . | . . . . . . . . . . . . . . . . . . . . . . . Time . | . . . . . . . . . . . . . . . . . . . . . . . Total Robot Build Rating . | . . . . . . . . . . . . . . . . . . . . . . . Part Schematics Acquired 9 | . . . . . . . . . . 9 . . . . . . . . . . . . Parts Built 2 | . . . . . . . . . . . . . . 2 . . . . . . . . Authchips 1 | . . . . . . . . . . . . . . 1 . . . . . . . . Time 236 | . . . . . . . . . . . . . . 236 . . . . . . . . Total Part Build Rating 11 | . . . . . . . . . . . . . . 11 . . . . . . . . Parts Repaired 2 | . . . . . . . . . . . . . . . . . 2 . . . . . Time 64 | . . . . . . . . . . . . . . . . . 64 . . . . . Parts Recycled . | . . . . . . . . . . . . . . . . . . . . . . . Recycled Matter . | . . . . . . . . . . . . . . . . . . . . . . . Retrieved Matter . | . . . . . . . . . . . . . . . . . . . . . . . Retrieved Components . | . . . . . . . . . . . . . . . . . . . . . . . Parts Scanalyzed . | . . . . . . . . . . . . . . . . . . . . . . . Part Schematics Acquired . | . . . . . . . . . . . . . . . . . . . . . . . Parts Damaged . | . . . . . . . . . . . . . . . . . . . . . . . Bothacking | -11 -10 -9 -9 -8 -7 -7 -7 -7 -7 -7 -6 -6 -6 -6 -5 -4 -4 -4 -4 -3 -2 -2 ------------ Run | Yrd Mat Mat Sto Mat Fac Was Fac Low Low Dat Pro Fac Was Fac Fac Fac Ext Cet Arc Res Res Qua Used RIF Installer . | . . . . . . . . . . . . . . . . . . . . . . . Robots Hacked 2 | . . . . . . . . . . . . 2 . . . . . . . . . . Non-combat . | . . . . . . . . . . . . . . . . . . . . . . . Combat 2 | . . . . . . . . . . . . 2 . . . . . . . . . . Robot Hacks Applied . | . . . . . . . . . . . . . . . . . . . . . . . Relay Couplers Released . | . . . . . . . . . . . . . . . . . . . . . . . Fabnet Peak Effective % 3 | . . . . . . . . . . . 3 3 3 3 1 . . . . . . . Autooverrided 2 | . . . . . . . . . . . . 2 . . . . . . . . . . Robots Rewired 18 | . . . . . . . . . . . . . . . . . 18 . . . . . Allies Hacked . | . . . . . . . . . . . . . . . . . . . . . . . Hacks Repelled . | . . . . . . . . . . . . . . . . . . . . . . . Allies | -11 -10 -9 -9 -8 -7 -7 -7 -7 -7 -7 -6 -6 -6 -6 -5 -4 -4 -4 -4 -3 -2 -2 -------- Run | Yrd Mat Mat Sto Mat Fac Was Fac Low Low Dat Pro Fac Was Fac Fac Fac Ext Cet Arc Res Res Qua Total Allies 33 | . . . . . . . . . . . . 2 1 . . . 25 5 . . . . Largest Group 13 | . . . . . . . . . . . . 2 1 . . . 13 12 6 . . . Highest-Rated Group 852 | . . . . . . . . . . . . 114 31 . . . 554 852 476 . . . Highest-Rated Ally 159 | . . . . . . . . . . . . 85 31 . . . 159 159 137 . . . Total Orders . | . . . . . . . . . . . . . . . . . . . . . . . Ally Attacks 230 | . . . . . . . . . . . . 6 2 . 6 . 163 43 10 . . . Total Damage 6332 | . . . . . . . . . . . . 60 42 . 119 . 4584 1146 381 . . . Kills 31 | . . . . . . . . . . . . . . . . . 26 4 1 . . . Allies Corrupted . | . . . . . . . . . . . . . . . . . . . . . . . Allies Melted . | . . . . . . . . . . . . . . . . . . . . . . . Intel | -11 -10 -9 -9 -8 -7 -7 -7 -7 -7 -7 -6 -6 -6 -6 -5 -4 -4 -4 -4 -3 -2 -2 ------- Run | Yrd Mat Mat Sto Mat Fac Was Fac Low Low Dat Pro Fac Was Fac Fac Fac Ext Cet Arc Res Res Qua Robot Analysis Total . | . . . . . . . . . . . . . . . . . . . . . . . Derelict Logs Recovered 3 | . . . . . . . . 1 . . 2 . . . . . . . . . . . Drone Launches 2 | . . . . . . . . . . . . . . . 2 . . . . . . . Drone Recoveries . | . . . . . . . . . . . . . . . . . . . . . . . Exploration | -11 -10 -9 -9 -8 -7 -7 -7 -7 -7 -7 -6 -6 -6 -6 -5 -4 -4 -4 -4 -3 -2 -2 ------------- Run | Yrd Mat Mat Sto Mat Fac Was Fac Low Low Dat Pro Fac Was Fac Fac Fac Ext Cet Arc Res Res Qua Turns Passed 13569 | 117 610 1990 1882 1976 427 32 249 246 99 22 365 204 78 820 427 284 1618 376 66 814 463 404 Spaces Moved 12453 | 60 267 803 660 598 173 111 302 610 348 79 941 632 174 1394 841 612 1428 209 50 1320 601 240 Core 152 | 7 . . . . . . . . . . . . . . 38 . 2 . 13 36 32 24 Treads 2381 | 53 267 803 660 598 . . . . . . . . . . . . . . . . . . Legs 216 | . . . . . . . . . . . . . . . . . . . . . . 216 Wheels 5 | . . . . . . . . . . . . . . . 5 . . . . . . . Hover 682 | . . . . . . . . . . . . . . . . . . . . 660 22 . Flight 9017 | . . . . . 173 111 302 610 348 79 941 632 174 1394 798 612 1426 209 37 624 547 . Fastest Speed 24 | 50 160 160 160 156 28 28 28 28 28 28 27 27 27 27 24 40 25 25 32 27 27 50 Average Speed 69 | 147 160 180 238 189 142 28 28 28 28 28 28 27 27 33 38 40 35 63 79 48 30 141 Slowest Speed 450 | 160 160 240 240 240 238 28 28 28 28 28 30 30 27 104 450 40 200 112 200 200 250 190 Overloaded Moves 79 | . . . . . . . . . . . . . . 65 14 . . . . . . . Propulsion Burnouts . | . . . . . . . . . . . . . . . . . . . . . . . Robots Hopped 41 | . . . . . 1 . 3 . . . . 1 . . 3 2 18 1 . 5 7 . Cave-ins Triggered . | . . . . . . . . . . . . . . . . . . . . . . . Exploration Rate (%) 49 | 5 48 71 83 52 3 75 10 71 52 69 85 18 100 32 31 10 96 72 68 25 31 20 Regions Visited 22 Branch Regions 9 Pre-discovered Areas 2 | . . . . . . . . . . 1 . . . 1 . . . . . . . . Known Exits Taken 11 | . . . . . . . 1 1 1 1 1 . . 1 . . 1 1 1 1 1 . Unknown Exits Taken 7 | 1 1 1 1 1 . . . . . . . . . . 1 1 . . . . . . Scrap Searched 8 | . . . . . . . . 2 2 . 4 . . . . . . . . . . . Spaces Dug 13 | . . 1 . . . . . 4 . . . 1 . 2 . 5 . . . . . . Terrain Destroyed 481 | . 19 85 40 182 . . . 4 . . 63 1 . 2 17 5 . . . . . 63 Melee 12 | . . . . . . . . 4 . . . 1 . 2 . 5 . . . . . . Projectile 48 | . . 4 13 16 . . . . . . . . . . . . . . . . . 15 AOE 421 | . 19 81 27 166 . . . . . . 63 . . . 17 . . . . . . 48 Terrain Rammed . | . . . . . . . . . . . . . . . . . . . . . . . Walls Destroyed . | . . . . . . . . . . . . . . . . . . . . . . . Machines Disabled . | . . . . . . . . . . . . . . . . . . . . . . . Actions | -11 -10 -9 -9 -8 -7 -7 -7 -7 -7 -7 -6 -6 -6 -6 -5 -4 -4 -4 -4 -3 -2 -2 --------- Run | Yrd Mat Mat Sto Mat Fac Was Fac Low Low Dat Pro Fac Was Fac Fac Fac Ext Cet Arc Res Res Qua Total 16429 | 83 361 1116 831 1239 351 111 462 664 349 78 1021 654 204 1728 933 636 2488 424 77 1473 862 284 Wait 2819 | 1 26 118 37 454 147 . 160 42 . . 60 7 30 258 53 12 865 184 23 119 223 . Move 12358 | 59 266 802 659 597 171 110 295 609 347 78 940 630 173 1393 834 607 1395 206 49 1309 589 240 Hop 34 | . . . . . 1 . 3 . . . . 1 . . 3 2 14 1 . 5 4 . Pick Up 163 | 13 5 26 21 24 . 1 2 1 1 . . 7 1 8 10 3 15 . . 11 3 11 Fast Attach 38 | 1 2 4 3 7 . . . . . . . . . 4 5 . 4 . . 7 . 1 Attach 119 | 6 . 7 2 11 11 . 1 . . . 5 4 . 8 16 2 15 2 1 8 10 10 Detach 17 | . . . . . . . . . . . 1 . . 5 3 . 1 2 2 2 1 . Swap 73 | . 6 21 13 15 2 . 1 . . . 5 . . 4 1 1 1 . . 1 1 1 Drop 102 | . 7 20 22 17 14 . . . 1 . . 1 . 8 3 1 2 1 1 3 1 . Fire 418 | 3 48 118 72 102 . . . . . . 8 . . . 3 . 4 28 . 8 3 21 Melee 67 | . . . . 5 5 . . 12 . . 2 4 . 10 1 8 19 . 1 . . . Ram 10 | . . . . . . . . . . . . . . . 1 . . . . . 9 . Kick . | . . . . . . . . . . . . . . . . . . . . . . . Crush 10 | . 1 . 2 7 . . . . . . . . . . . . . . . . . . Escape Stasis 59 | . . . . . . . . . . . . . . 30 . . 11 . . . 18 . Rewire 142 | . . . . . . . . . . . . . . . . . 142 . . . . . Trap . | . . . . . . . . . . . . . . . . . . . . . . . Miscellaneous . | . . . . . . . . . . . . . . . . . . . . . . . Route ------- -11/Scrapyard -10/Materials (discovered 2 exits: *Mat / [*Min]) -9/Materials (discovered 4 exits: *Mat x2 / [*Min] / *Sto) -9/Storage (discovered 2 exits: *Mat / [*Rec]) -8/Materials -7/Factory -7/Waste -7/Factory -7/Lower Caves -7/Lower Caves -7/Data Miner -6/Proximity Caves -6/Factory -6/Waste -6/Factory (discovered 5 exits: *Fac x4 / *Low) -5/Factory -4/Factory -4/Extension (discovered 2 exits: *Res / *Cet) -4/Cetus (discovered 2 exits: *Res / *Arc) -4/Archives -3/Research (discovered 4 exits: *Res x3 / *Tes) -2/Research (discovered 2 exits: *Qua x2) -2/Quarantine History --------- Turn | Location | Event 8 | -11/Scrapyard | Discovered new exit (range 16) 118 | -11/Scrapyard | Entered Materials 194 | -10/Materials | Discovered new exit (range 16) 302 | -10/Materials | Build established: Mutant 500 | -10/Materials | Discovered new exit (range 13) 728 | -10/Materials | Entered another Materials area 728 | -9/Materials | Evolved 2 slots: Propulsion x1, Utility x1 931 | -9/Materials | Discovered new exit (range 8) 1037 | -9/Materials | Lost 5 parts (1p2n1u1w) 1361 | -9/Materials | Discovered new exit (range 9) 1485 | -9/Materials | Build established: Scavenger-Mutant 1928 | -9/Materials | First assault squad dispatched 2143 | -9/Materials | Discovered new exit (range 12) 2143 | -9/Materials | Discovered new exit (range 13) 2718 | -9/Materials | Entered Storage 3438 | -9/Storage | Used back door to open Recycling access 3438 | -9/Storage | Discovered new exit (range 4) 3685 | -9/Storage | Build established: Mutant 4318 | -9/Storage | First assault squad dispatched 4361 | -9/Storage | Core integrity fell below 50% 4517 | -9/Storage | Discovered new exit (range 15) 4600 | -9/Storage | Entered Materials 4600 | -8/Materials | Evolved 2 slots: Propulsion x1, Utility x1 5400 | -8/Materials | First assault squad dispatched 5423 | -8/Materials | Build established: Scavenger-Mutant 5534 | -8/Materials | Destroyed 8 combat bots 5538 | -8/Materials | Lost 6 parts (1p3n1u1w) 5762 | -8/Materials | Build established: Mutant 5861 | -8/Materials | Core integrity fell below 50% 6066 | -8/Materials | Discovered new exit (range 15) 6165 | -8/Materials | Build established: Scavenger-Mutant 6576 | -8/Materials | Entered Factory 6576 | -7/Factory | Evolved 2 slots: Propulsion x1, Utility x1 6880 | -7/Factory | Build established: Hacker-Mutant 7003 | -7/Factory | Sucked down chute 7003 | -7/Factory | Entered Waste 7018 | -7/Waste | EMP discharged 7018 | -7/Waste | Spotted C-40 Crusher 7026 | -7/Waste | Spotted C-40 Crusher 7027 | -7/Waste | Discovered new exit (range 16) 7031 | -7/Waste | Spotted C-40 Crusher 7035 | -7/Waste | Identified exit to Factory 7035 | -7/Waste | Entered Factory 7274 | -7/Factory | Discovered new exit (range 15) 7278 | -7/Factory | Identified exit to Lower Caves 7284 | -7/Factory | Entered Lower Caves 7291 | -7/Lower Caves | Build established: Hacker-Sprinter 7468 | -7/Lower Caves | Identified exit to Lower Caves 7523 | -7/Lower Caves | Encountered a Warlord checkpoint 7530 | -7/Lower Caves | Entered another Lower Caves area 7604 | -7/Lower Caves | Found DCF Scrap (13 items) 7626 | -7/Lower Caves | Discovered new exit (range 15) 7629 | -7/Lower Caves | Identified exit to Data Miner 7629 | -7/Lower Caves | Entered Data Miner 7629 | -7/Data Miner | Discovered new exit (range 6) 7631 | -7/Data Miner | Identified exit to Proximity Caves 7635 | -7/Data Miner | Met Data Miner 7640 | -7/Data Miner | Learned location of Section 7 (-2) 7640 | -7/Data Miner | Acquired the access code to Warlord's prototype stash 7645 | -7/Data Miner | Received God Mode back door access code from Data Miner 7651 | -7/Data Miner | Entered Proximity Caves 7730 | -6/Proximity Caves | Spotter reported a threat 7731 | -6/Proximity Caves | Spotter reported a threat 7755 | -6/Proximity Caves | Learned Factory emergency access door positions 7909 | -6/Proximity Caves | Identified exit to Factory 7927 | -6/Proximity Caves | Spotted B-75 Beast 7965 | -6/Proximity Caves | Build established: Sprinter 8007 | -6/Proximity Caves | Spotter reported a threat 8016 | -6/Proximity Caves | Entered Factory 8016 | -6/Factory | Evolved 2 slots: Power x1, Utility x1 8099 | -6/Factory | Local machine network offline 8111 | -6/Factory | Spotted B-75 Beast 8220 | -6/Factory | Sucked down chute 8220 | -6/Factory | Entered Waste 8221 | -6/Waste | Met a frightened Derelict 8239 | -6/Waste | Spotted C-40 Crusher 8241 | -6/Waste | Spotted C-40 Crusher 8245 | -6/Waste | Spotted C-40 Crusher 8247 | -6/Waste | Spotted C-40 Crusher 8247 | -6/Waste | Spotted C-40 Crusher 8247 | -6/Waste | Spotted C-40 Crusher 8290 | -6/Waste | Discovered new exit (range 12) 8298 | -6/Waste | Identified exit to Factory 8298 | -6/Waste | Entered Factory 8339 | -6/Factory | Incoming investigation squad redirected 8414 | -6/Factory | Incoming investigation squad redirected 8548 | -6/Factory | Fabricated Cld. Cesium-ion Thruster? 8584 | -6/Factory | Lost 5 parts (4n1u) 8724 | -6/Factory | Lost 3 parts (1p1n1u) 8735 | -6/Factory | Discovered new exit (range 16) 8748 | -6/Factory | Identified exit to Lower Caves 8840 | -6/Factory | Identified exit to Factory 8970 | -6/Factory | Fabricated Combat Drone Bay (x1) 8998 | -6/Factory | Search patrols dispatched 9088 | -6/Factory | Build established: Hacker-Sprinter 9118 | -6/Factory | Entered another Factory area 9118 | -5/Factory | Evolved 2 slots: Utility x2 9180 | -5/Factory | Incoming investigation squad redirected 9431 | -5/Factory | Core integrity fell below 50% 9437 | -5/Factory | Released all parts (7) 9458 | -5/Factory | Lost 8 parts (1p4n1u2w) 9500 | -5/Factory | Spotted B-75 Beast 9530 | -5/Factory | Discovered new exit (range 11) 9545 | -5/Factory | Entered another Factory area 9545 | -4/Factory | Evolved 2 slots: Utility x2 9591 | -4/Factory | Spotted B-86 Titan 9664 | -4/Factory | Discovered new exit (range 14) 9758 | -4/Factory | Build established: Infiltrator-Mutant 9829 | -4/Factory | Entered Extension 9911 | -4/Extension | Spotted B-86 Titan 9983 | -4/Extension | Rescued a captive Derelict 10050 | -4/Extension | Lost 4 parts (1p1n2u) 10275 | -4/Extension | Rescued a captive Derelict 10278 | -4/Extension | Rescued a captive Derelict 10326 | -4/Extension | Rescued a captive Derelict 10610 | -4/Extension | Build established: Commander-Sprinter 10645 | -4/Extension | Allies destroyed B-86 Titan 10647 | -4/Extension | Spotted B-86 Titan 10664 | -4/Extension | Allies destroyed B-86 Titan 10690 | -4/Extension | Lost 6 allies 10706 | -4/Extension | Rescued A7 10751 | -4/Extension | Rescued a captive Derelict 10811 | -4/Extension | Lost 4 allies 10905 | -4/Extension | Repaired VTOL Module 10938 | -4/Extension | Repaired VTOL Module 11066 | -4/Extension | Rescued a captive Derelict 11235 | -4/Extension | Build established: Scavenger-Sprinter 11325 | -4/Extension | Discovered new exit (range 22) 11325 | -4/Extension | Discovered new exit (range 21) 11347 | -4/Extension | Identified exit to Cetus 11447 | -4/Extension | Entered Cetus 11447 | -4/Cetus | Accompanied by 8 allies (A7) 11452 | -4/Cetus | Acquired a Cetus Manufacturing Module code from A7 11461 | -4/Cetus | Spotted Cetus Guard 11461 | -4/Cetus | Spotted Cetus Guard 11461 | -4/Cetus | Destroyed Cetus Guard 11463 | -4/Cetus | Spotted Cetus Guard 11465 | -4/Cetus | Allies destroyed Cetus Guard 11465 | -4/Cetus | Spotted Cetus Guard 11475 | -4/Cetus | Allies destroyed Cetus Guard 11486 | -4/Cetus | Destroyed Cetus Guard 11533 | -4/Cetus | Started Cetus Manufacturing Module 11544 | -4/Cetus | Escorted A7 to Cetus Mainframe 11558 | -4/Cetus | Manufactured an Enhanced Grunt 11583 | -4/Cetus | Manufactured an Enhanced Grunt 11608 | -4/Cetus | Manufactured an Enhanced Grunt 11633 | -4/Cetus | Manufactured an Enhanced Grunt 11658 | -4/Cetus | Manufactured an Enhanced Grunt 11664 | -4/Cetus | Discovered new exit (range 21) 11698 | -4/Cetus | Spotted Cetus Guard 11698 | -4/Cetus | Spotted Cetus Guard 11702 | -4/Cetus | Spotted Cetus Guard 11702 | -4/Cetus | Spotted Cetus Guard 11721 | -4/Cetus | Destroyed Cetus Guard 11725 | -4/Cetus | Allies destroyed Cetus Guard 11727 | -4/Cetus | Destroyed Cetus Guard 11733 | -4/Cetus | Allies destroyed Cetus Guard 11734 | -4/Cetus | Discovered new exit (range 21) 11748 | -4/Cetus | Met Revision 17 11755 | -4/Cetus | Lost 5 allies 11758 | -4/Cetus | Lost 3 parts (2n1u) 11772 | -4/Cetus | Identified exit to Archives 11823 | -4/Cetus | Entered Archives 11823 | -4/Archives | Accompanied by 6 allies (A7) 11828 | -4/Archives | Received a hacking code to weaken MAIN.C 11864 | -4/Archives | Discovered new exit (range 13) 11885 | -4/Archives | Identified exit to Research 11889 | -4/Archives | Entered Research 11889 | -3/Research | Evolved 2 slots: Propulsion x1, Utility x1 11895 | -3/Research | Lost 4 parts (3n1w) 11913 | -3/Research | Lost 4 allies 12028 | -3/Research | Discovered new exit (range 8) 12033 | -3/Research | Identified exit to Testing 12089 | -3/Research | Revision forces began assault on 0b10 12136 | -3/Research | Found Prototype Device 12136 | -3/Research | Identified Exp. Thermal Defense Suite 12158 | -3/Research | Build established: Hacker-Mutant 12192 | -3/Research | Met up with Revision 17++ 12425 | -3/Research | Identified exit to Research 12589 | -3/Research | Research terminal network offline 12650 | -3/Research | Spotted Executioner 12650 | -3/Research | Spotted Striker 12703 | -3/Research | Entered another Research area 12703 | -2/Research | Evolved 2 slots: Utility x2 12746 | -2/Research | Identified exit to Quarantine 12838 | -2/Research | Build established: Scavenger-Scout 13051 | -2/Research | Spotted B-90 Cyclops 13103 | -2/Research | Spotted B-90 Cyclops 13106 | -2/Research | Spotted B-90 Cyclops 13145 | -2/Research | Core integrity fell below 50% 13160 | -2/Research | Lost 16 parts (2p9n5u) 13163 | -2/Research | Core integrity fell below 20% 13166 | -2/Research | Entered Quarantine 13451 | -2/Quarantine | Build established: Mutant 13570 | -2/Quarantine | Destroyed by H-88 Terminator with KE Penetrator Last Messages --------------- Imp. System Restoration Module destroyed. Penetrated by Slug. Slug penetrates Wall. Penetrated by Slug. Slug penetrates H-88 Terminator. U-05 Engineer builds a Wall. Penetrated by Slug. Slug penetrates Wall. Penetrated by Slug. Slug penetrates Wall. U-05 Engineer builds a Wall. H-88 Terminator knocked back. Slug penetrates Wall. Penetrated by Slug. U-05 Engineer builds a Wall. Slug penetrates Wall. Slug penetrates H-88 Terminator. H-88 Terminator knocked back. U-05 Engineer builds a Wall. Penetrated by Slug. Map ----- +----------------------------------------------------+ | ????????????????????????????????????????? | | ????????####### # # """ # ??? | | ????????# # # # " " # ??? | | ????????# # # # """ # "" "??? | | ????????# " ? # # "" # ""S"??? | | ????????# "" # # # # """"??? | | ????????# "" # # ######## ??? | | ????????# "" ####+### ##########+##??? | | ????????# " # ??? | | ######### "" # ??? | | # ## "" # % ??? | | # ## "" # ##########+######+##??? | | # ## " # # # # ??? | | # """" ## # # # # ??? | | # """" ####+### + # " "" ? ??? | | # """" # # # "R"" # ??? | | # """" + + "T" # """ # ??? | | # # # # # ""??? | | # """" ####+####u################ "" ??? | | # """" ## ## #??????????????# """??? | | # """" ## ## ;??????????????# ??? | | # """" ## " #% ;??????????????######??? | | # ## "" #;h;??????????????????????? | | ######### "" ;; ##?????????????????????? | | ????????# "" #;h;#?????????????????????? | | ???????## " ##@#??????????????????????? | | ??????? ? "" ## #??????????????????????? | | ???????## "" ## #??????????????????????? | | ????????# "" ## #??????????????????????? | | ????????# " ## #??????????????????????? | | ????????# ## #??????????????????????? | | ????????######## #??????????????????????? | | ????????# ?# #??????????????????????? | | ????????# # #??????????????????????? | | ????????# """ # #??????????????????????? | | ????????# """ + #??????????????????????? | | ????????# """ # #??????????????????????? | | ????????# # #???#########??????????? | | ????????######## #???#"""G"""#??????????? | | ????????# # #?###""" """####???????? | | ????????# """ +^#?# #???????? | | ????????# " " # #?# #???????? | | ????????# """ # #?# #######?? | | ????????# # #?# ## ?? | | ????????# # #?# """"""" ## """ | | ????????######## #?# """"""" ## """ | | ???????????????# #?# """"""" ## """ | | ???????????????# #?# ## | | ???????????????# #?# """"""" ## "" "" | | ???????????????# #?# """"""" ## ""S"" | +----------------------------------------------------+ Best States ------------- Heat Dissipation 54 Coolant Potential 50 Energy Generation 39 Energy Capacity 350 Matter Stores 300 Matter Capacity 300 Sight Range 22 Robot Scan Range 18 Terrain Scan Range 20 Terrain Scan Density 10 ECM Strength 1 Cloak Strength 3 Armor Coverage 225 Core Shielding 20 Evasion (%) 73 Targeting Accuracy 5 Melee Accuracy 5 Recoil Reduction 4 Offensive Hacking 34 Defensive Hacking 14 Authchip Count 1 Item Schematics ----------------- Combat Drone Bay | -7/Data Miner | Free Lgt. Regenerative Plating | -7/Data Miner | Free Cld. Cesium-ion Thruster | -7/Data Miner | Free Exp. Targeting Computer | -7/Data Miner | Free Imp. Heavy Laser | -7/Data Miner | Free Gyrokinetic Inverter | -7/Data Miner | Free Imp. Focal Shield | -7/Data Miner | Free Disruptor Cannon | -7/Data Miner | Free Graphene Brace | -7/Data Miner | Free Robot Schematics ------------------ M-28 Smith | -7/Data Miner | Free B-48 Gladiator | -7/Data Miner | Free R-10 Processor | -7/Data Miner | Free E-15 Imp | -7/Data Miner | Free Fabricated ------------ Cld. Cesium-ion Thruster | x1 | -6/Factory Combat Drone Bay | x1 | -6/Factory | Authchip Alien Tech Used ----------------- None Achievements -------------- Revolutionary Research Challenges ------------ None Game ------ Seed LegThunderAutobeam Manual? 0 Play Time 02:28:29 Cumulative 106.3 hours Start 2025.01.07 @ 20:25:13 End 2025.01.07 @ 23:13:56 Sessions 1 Manual Loads 0 Difficulty Rogue Special Mode None Game No. 99 Rogue 99 Adventurer 0 Explorer 0 Win Type - Total 1 Types 1/0/0/0/0/0/0/0/0 Lore% 56 Gallery% 50 Achievement% 49 Wizard Run 0 Options --------- Layout 1 ASCII 0 Keyboard 0 Movement Mouse Keybinds 0 Fullscreen 1 Font 24/Smallcaps Map View 50x35 Zoom Use 0% Tactical HUD 0 Map Filters NONE Filters NONE Steam 1 RUN: 14281e1f-6bd9-4866-9a0d-990f307ba9fc